[Event "*** Titled Tuesday Blitz"]
[Site "Chess.com"]
[Date "2020.10.27"]
[Round "1"]
[White "Rodalquilar"]
[Black "Chessalary"]
[Result "1-0"]
[WhiteElo "2749"]
[BlackElo "2390"]
[TimeControl "180+1"]
[EndTime "10:01:08 PDT"]
[Termination "Rodalquilar won by resignation"]

1. d4 {[%clk 0:02:48.9]} 1... d5 {[%clk 0:03:00]} 2. Bf4 {[%clk 0:02:49]} 2...
Nf6 {[%clk 0:02:59.8]} 3. e3 {[%clk 0:02:49.3]} 3... c5 {[%clk 0:02:59.4]} 4.
Nf3 {[%clk 0:02:49.7]} 4... Nc6 {[%clk 0:02:59.7]} 5. Nbd2 {[%clk 0:02:50]} 5...
Bg4 {[%clk 0:02:59.1]} 6. c3 {[%clk 0:02:49.9]} 6... e6 {[%clk 0:02:58.9]} 7.
Qb3 {[%clk 0:02:49.7]} 7... Qb6 {[%clk 0:02:52.7]} 8. Qxb6 {[%clk 0:02:49.5]}
8... axb6 {[%clk 0:02:53.6]} 9. Bb5 {[%clk 0:02:50.3]} 9... Nd7 {[%clk
0:02:47.4]} 10. O-O {[%clk 0:02:50.3]} 10... Na7 {[%clk 0:02:40.7]} 11. Bxd7+
{[%clk 0:02:48.7]} 11... Kxd7 {[%clk 0:02:40.5]} 12. Ne5+ {[%clk 0:02:48.9]} 1-0

[Event "*** Titled Tuesday Blitz"]
[Site "Chess.com"]
[Date "2020.10.27"]
[Round "1"]
[White "WanderingPuppet"]
[Black "Sesleria"]
[Result "1-0"]
[WhiteElo "2504"]
[BlackElo "1897"]
[TimeControl "180+1"]
[EndTime "10:02:39 PDT"]
[Termination "WanderingPuppet won by resignation"]

1. e4 {[%clk 0:02:56]} 1... c5 {[%clk 0:02:59.6]} 2. Nf3 {[%clk 0:02:54.4]} 2...
e6 {[%clk 0:02:58.8]} 3. d4 {[%clk 0:02:51.3]} 3... cxd4 {[%clk 0:02:58.9]} 4.
Nxd4 {[%clk 0:02:52.2]} 4... Nc6 {[%clk 0:02:58.7]} 5. Nc3 {[%clk 0:02:52.1]}
5... Qc7 {[%clk 0:02:59]} 6. Ndb5 {[%clk 0:02:51.5]} 6... Qb8 {[%clk 0:02:58.7]}
7. Be3 {[%clk 0:02:51.1]} 7... a6 {[%clk 0:02:58.5]} 8. Bb6 {[%clk 0:02:51.1]}
8... axb5 {[%clk 0:02:56]} 9. Nxb5 {[%clk 0:02:52]} 9... Bb4+ {[%clk 0:02:56.2]}
10. c3 {[%clk 0:02:52.1]} 10... Ba5 {[%clk 0:02:56.6]} 11. Nd6+ {[%clk 0:02:52]}
11... Kf8 {[%clk 0:02:29.5]} 12. Bc5 {[%clk 0:02:50.7]} 12... Nge7 {[%clk
0:01:39.3]} 13. Qh5 {[%clk 0:02:47.4]} 13... Kg8 {[%clk 0:01:08.5]} 1-0

[Event "*** Titled Tuesday Blitz"]
[Site "Chess.com"]
[Date "2020.10.27"]
[Round "1"]
[White "shriyanasmallya"]
[Black "Titus369"]
[Result "0-1"]
[WhiteElo "1662"]
[BlackElo "2498"]
[TimeControl "180+1"]
[EndTime "10:03:05 PDT"]
[Termination "Titus369 won by checkmate"]

1. e4 {[%clk 0:03:00.9]} 1... c5 {[%clk 0:02:57.6]} 2. Nc3 {[%clk 0:03:00.4]}
2... Nc6 {[%clk 0:02:57]} 3. f4 {[%clk 0:03:00.5]} 3... g6 {[%clk 0:02:54.9]} 4.
Nf3 {[%clk 0:03:00.3]} 4... Bg7 {[%clk 0:02:55.5]} 5. Bb5 {[%clk 0:02:59.7]}
5... Nd4 {[%clk 0:02:54.6]} 6. Nxd4 {[%clk 0:02:58.4]} 6... cxd4 {[%clk
0:02:55.5]} 7. Ne2 {[%clk 0:02:56.2]} 7... a6 {[%clk 0:02:55.7]} 8. Bd3 {[%clk
0:02:54.7]} 8... b5 {[%clk 0:02:54.9]} 9. O-O {[%clk 0:02:54.6]} 9... Bb7 {[%clk
0:02:54.9]} 10. c3 {[%clk 0:02:54.1]} 10... Qb6 {[%clk 0:02:54.2]} 11. Kh1
{[%clk 0:02:52.7]} 11... Nf6 {[%clk 0:02:48.4]} 12. e5 {[%clk 0:02:51.3]} 12...
Ng4 {[%clk 0:02:45.9]} 13. Nxd4 {[%clk 0:02:48.2]} 13... h5 {[%clk 0:02:45.8]}
14. h3 {[%clk 0:02:47]} 14... d6 {[%clk 0:02:16.1]} 15. hxg4 {[%clk 0:02:39.8]}
15... hxg4+ {[%clk 0:02:17]} 16. Kg1 {[%clk 0:02:39]} 16... dxe5 {[%clk
0:02:16.9]} 17. fxe5 {[%clk 0:02:39.3]} 17... Bxe5 {[%clk 0:02:17.8]} 18. Qxg4
{[%clk 0:02:34.7]} 18... Rd8 {[%clk 0:02:17.5]} 19. Be2 {[%clk 0:02:06]} 19...
Rxd4 {[%clk 0:02:11.7]} 20. cxd4 {[%clk 0:01:58.5]} 20... Bxd4+ {[%clk
0:02:12.6]} 21. Rf2 {[%clk 0:01:48.4]} 21... Bxf2+ {[%clk 0:02:12.2]} 22. Kf1
{[%clk 0:01:48.6]} 22... Rh1# {[%clk 0:02:13.1]} 0-1

[Event "*** Titled Tuesday Blitz"]
[Site "Chess.com"]
[Date "2020.10.27"]
[Round "1"]
[White "talman67"]
[Black "AntonovaNadezhda"]
[Result "1-0"]
[WhiteElo "2538"]
[BlackElo "2115"]
[TimeControl "180+1"]
[EndTime "10:03:38 PDT"]
[Termination "talman67 won by resignation"]

1. e4 {[%clk 0:02:59]} 1... c5 {[%clk 0:02:59.7]} 2. Nf3 {[%clk 0:02:58.8]} 2...
d6 {[%clk 0:03:00.2]} 3. d4 {[%clk 0:02:59.3]} 3... cxd4 {[%clk 0:03:00.7]} 4.
Nxd4 {[%clk 0:03:00.2]} 4... Nf6 {[%clk 0:03:00.8]} 5. Nc3 {[%clk 0:03:00.7]}
5... a6 {[%clk 0:03:01.1]} 6. Bg5 {[%clk 0:02:56.6]} 6... Nbd7 {[%clk
0:03:00.7]} 7. Bc4 {[%clk 0:02:55.8]} 7... Qb6 {[%clk 0:02:57.5]} 8. Bb3 {[%clk
0:02:55.8]} 8... Nc5 {[%clk 0:02:43.9]} 9. Bxf6 {[%clk 0:02:50.8]} 9... Nxb3
{[%clk 0:02:37]} 10. axb3 {[%clk 0:02:40.1]} 10... gxf6 {[%clk 0:02:34.4]} 11.
Nd5 {[%clk 0:02:38.3]} 11... Qd8 {[%clk 0:02:29.8]} 12. Nb5 {[%clk 0:02:38.5]}
12... Rb8 {[%clk 0:02:13.8]} 13. Nbc7+ {[%clk 0:02:29.3]} 13... Kd7 {[%clk
0:02:12.7]} 14. Qh5 {[%clk 0:02:15.1]} 14... e6 {[%clk 0:02:03.7]} 15. Qxf7+
{[%clk 0:02:14.1]} 15... Kc6 {[%clk 0:02:04.1]} 16. Nxe6 {[%clk 0:01:52.9]}
16... Bxe6 {[%clk 0:01:55.6]} 17. Qxe6 {[%clk 0:01:53.8]} 17... Bh6 {[%clk
0:01:54]} 18. Ra4 {[%clk 0:01:41.3]} 18... Re8 {[%clk 0:01:48.2]} 19. Rc4+
{[%clk 0:01:40.5]} 19... Kb5 {[%clk 0:01:46.8]} 20. Qxe8+ {[%clk 0:01:36.2]} 1-0

[Event "*** Titled Tuesday Blitz"]
[Site "Chess.com"]
[Date "2020.10.27"]
[Round "1"]
[White "BikingBrian"]
[Black "Kavyev_Ruslan"]
[Result "1-0"]
[WhiteElo "2266"]
[BlackElo "2579"]
[TimeControl "180+1"]
[EndTime "10:04:02 PDT"]
[Termination "BikingBrian won by checkmate"]

1. d4 {[%clk 0:03:00.9]} 1... Nf6 {[%clk 0:02:59.6]} 2. Bg5 {[%clk 0:02:58.7]}
2... Ne4 {[%clk 0:02:59.6]} 3. Bf4 {[%clk 0:02:59]} 3... c5 {[%clk 0:02:58.6]}
4. f3 {[%clk 0:02:59.4]} 4... Qa5+ {[%clk 0:02:58]} 5. c3 {[%clk 0:02:59.8]}
5... Nf6 {[%clk 0:02:58.3]} 6. d5 {[%clk 0:03:00.3]} 6... Qb6 {[%clk 0:02:58.1]}
7. Bc1 {[%clk 0:02:56.8]} 7... e6 {[%clk 0:02:58.4]} 8. e4 {[%clk 0:02:56.5]}
8... exd5 {[%clk 0:02:58.7]} 9. exd5 {[%clk 0:02:57.4]} 9... c4 {[%clk
0:02:59.1]} 10. Bxc4 {[%clk 0:02:56.1]} 10... Bc5 {[%clk 0:02:59.7]} 11. Ne2
{[%clk 0:02:42.3]} 11... O-O {[%clk 0:02:59.5]} 12. Bg5 {[%clk 0:02:17.1]} 12...
Re8 {[%clk 0:02:58.8]} 13. b4 {[%clk 0:02:14.4]} 13... Be3 {[%clk 0:02:58.1]}
14. Bxe3 {[%clk 0:02:02.2]} 14... Qxe3 {[%clk 0:02:59]} 15. Qd2 {[%clk
0:01:59.9]} 15... Qb6 {[%clk 0:02:59.4]} 16. Qd4 {[%clk 0:01:49.9]} 16... Qxd4
{[%clk 0:02:58.5]} 17. cxd4 {[%clk 0:01:49.6]} 17... a6 {[%clk 0:02:59.1]} 18.
Kf2 {[%clk 0:01:43.7]} 18... b5 {[%clk 0:02:59]} 19. Bb3 {[%clk 0:01:42.8]}
19... Bb7 {[%clk 0:02:59.7]} 20. Nbc3 {[%clk 0:01:42]} 20... d6 {[%clk
0:03:00.2]} 21. Rhe1 {[%clk 0:01:40.6]} 21... Nbd7 {[%clk 0:03:00.4]} 22. Nf4
{[%clk 0:01:38.5]} 22... Nb6 {[%clk 0:03:00.4]} 23. Rxe8+ {[%clk 0:01:36]} 23...
Rxe8 {[%clk 0:03:01.3]} 24. Re1 {[%clk 0:01:35.7]} 24... Rc8 {[%clk 0:03:02]}
25. Re3 {[%clk 0:01:29.3]} 25... g5 {[%clk 0:02:59.1]} 26. Nh3 {[%clk
0:01:23.7]} 26... h6 {[%clk 0:02:59.4]} 27. Re7 {[%clk 0:01:08.6]} 27... Bxd5
{[%clk 0:02:57.2]} 28. Nxd5 {[%clk 0:01:08.2]} 28... Nbxd5 {[%clk 0:02:58.1]}
29. Bxd5 {[%clk 0:01:07.1]} 29... Nxd5 {[%clk 0:02:58.1]} 30. Rd7 {[%clk
0:01:07]} 30... Rc6 {[%clk 0:02:56.9]} 31. a3 {[%clk 0:01:00.1]} 31... Nb6
{[%clk 0:02:53.8]} 32. Rd8+ {[%clk 0:00:59.3]} 32... Kg7 {[%clk 0:02:53.9]} 33.
Kg3 {[%clk 0:00:58.6]} 33... Nc4 {[%clk 0:02:53.9]} 34. f4 {[%clk 0:00:57]}
34... gxf4+ {[%clk 0:02:53.6]} 35. Nxf4 {[%clk 0:00:56.8]} 35... Nxa3 {[%clk
0:02:53.9]} 36. Nh5+ {[%clk 0:00:55.4]} 36... Kg6 {[%clk 0:02:53.4]} 37. Kh4
{[%clk 0:00:49.6]} 37... Nc2 {[%clk 0:02:48.8]} 38. g4 {[%clk 0:00:48.4]} 38...
Nxd4 {[%clk 0:02:47.3]} 39. Rg8+ {[%clk 0:00:48]} 39... Kh7 {[%clk 0:02:46.7]}
40. Nf6# {[%clk 0:00:48.1]} 1-0

[Event "*** Titled Tuesday Blitz"]
[Site "Chess.com"]
[Date "2020.10.27"]
[Round "1"]
[White "GigaQuparadze"]
[Black "ASVZ"]
[Result "1-0"]
[WhiteElo "2831"]
[BlackElo "2432"]
[TimeControl "180+1"]
[EndTime "10:04:26 PDT"]
[Termination "GigaQuparadze won by resignation"]

1. Nf3 {[%clk 0:03:00.9]} 1... e6 {[%clk 0:02:57.9]} 2. g3 {[%clk 0:02:59.3]}
2... b6 {[%clk 0:02:58.3]} 3. Bg2 {[%clk 0:02:59.4]} 3... Bb7 {[%clk 0:02:59.2]}
4. O-O {[%clk 0:02:59.7]} 4... f5 {[%clk 0:02:59.1]} 5. d3 {[%clk 0:02:59.9]}
5... Nf6 {[%clk 0:02:59.8]} 6. Nbd2 {[%clk 0:03:00.2]} 6... g6 {[%clk
0:03:00.3]} 7. Re1 {[%clk 0:02:59.4]} 7... Bg7 {[%clk 0:03:00.5]} 8. e4 {[%clk
0:02:59.7]} 8... O-O {[%clk 0:03:00.8]} 9. e5 {[%clk 0:02:58.7]} 9... Ng4 {[%clk
0:03:00.4]} 10. d4 {[%clk 0:02:55.4]} 10... g5 {[%clk 0:02:45.3]} 11. c3 {[%clk
0:02:50.1]} 11... Nh6 {[%clk 0:02:09.3]} 12. Nf1 {[%clk 0:02:32.1]} 12... Nf7
{[%clk 0:02:05.4]} 13. Nxg5 {[%clk 0:02:26.5]} 13... Bxg2 {[%clk 0:02:00.1]} 14.
Nxf7 {[%clk 0:02:26]} 14... Rxf7 {[%clk 0:01:56.5]} 15. Kxg2 {[%clk 0:02:25.9]}
15... Nc6 {[%clk 0:01:54.4]} 16. Bf4 {[%clk 0:02:24.9]} 16... Ne7 {[%clk
0:01:54.1]} 17. Bg5 {[%clk 0:02:23.6]} 17... Qe8 {[%clk 0:01:53.7]} 18. Bxe7
{[%clk 0:02:22.9]} 18... Rxe7 {[%clk 0:01:54.6]} 19. f4 {[%clk 0:02:23]} 19...
h5 {[%clk 0:01:53.4]} 20. Qf3 {[%clk 0:02:23.1]} 20... h4 {[%clk 0:01:53]} 21.
gxh4 {[%clk 0:02:22.7]} 21... Bh6 {[%clk 0:01:52.8]} 22. Ng3 {[%clk 0:02:22.8]}
22... Rg7 {[%clk 0:01:52.9]} 23. h3 {[%clk 0:02:18.3]} 23... Kh7 {[%clk
0:01:52.9]} 24. Kh2 {[%clk 0:02:16.6]} 24... Qg6 {[%clk 0:01:52]} 25. Nh5 {[%clk
0:02:08.2]} 25... Rag8 {[%clk 0:01:24.5]} 26. Nxg7 {[%clk 0:02:04.8]} 26... Qxg7
{[%clk 0:01:19]} 27. Rg1 {[%clk 0:02:03.6]} 27... Qe7 {[%clk 0:01:17.3]} 28.
Rxg8 {[%clk 0:02:02.9]} 28... Kxg8 {[%clk 0:01:18.2]} 29. Rg1+ {[%clk
0:02:02.5]} 29... Kh7 {[%clk 0:01:18.4]} 30. Qh5 {[%clk 0:01:54.6]} 30... Qf8
{[%clk 0:01:18.6]} 31. Rg6 {[%clk 0:01:49.8]} 31... a5 {[%clk 0:01:16.9]} 32.
Rf6 {[%clk 0:01:49.5]} 1-0

[Event "*** Titled Tuesday Blitz"]
[Site "Chess.com"]
[Date "2020.10.27"]
[Round "1"]
[White "Mazetovic"]
[Black "KacperPolOK"]
[Result "1-0"]
[WhiteElo "2763"]
[BlackElo "2402"]
[TimeControl "180+1"]
[EndTime "10:04:28 PDT"]
[Termination "Mazetovic won by checkmate"]

1. e4 {[%clk 0:03:00.2]} 1... e6 {[%clk 0:02:58]} 2. d3 {[%clk 0:02:58.9]} 2...
d5 {[%clk 0:02:57.6]} 3. Nd2 {[%clk 0:02:59.1]} 3... c5 {[%clk 0:02:58.1]} 4.
Ngf3 {[%clk 0:02:59.2]} 4... Nc6 {[%clk 0:02:58.6]} 5. g3 {[%clk 0:02:59.3]}
5... Bd6 {[%clk 0:02:58.6]} 6. Bg2 {[%clk 0:02:59.4]} 6... Nge7 {[%clk
0:02:54.8]} 7. O-O {[%clk 0:02:59.9]} 7... O-O {[%clk 0:02:55.1]} 8. Re1 {[%clk
0:03:00.2]} 8... Qc7 {[%clk 0:02:55.4]} 9. c3 {[%clk 0:02:58.5]} 9... Rb8 {[%clk
0:02:54.4]} 10. h4 {[%clk 0:02:54.2]} 10... d4 {[%clk 0:02:49]} 11. Nc4 {[%clk
0:02:52.7]} 11... e5 {[%clk 0:02:46.7]} 12. a4 {[%clk 0:02:46.4]} 12... f6
{[%clk 0:02:32.7]} 13. h5 {[%clk 0:02:45.2]} 13... Be6 {[%clk 0:02:32.2]} 14.
Nh4 {[%clk 0:02:44.1]} 14... a6 {[%clk 0:02:28.2]} 15. a5 {[%clk 0:02:25.9]}
15... Bxc4 {[%clk 0:02:22.1]} 16. dxc4 {[%clk 0:02:25.5]} 16... Nxa5 {[%clk
0:02:22.6]} 17. Bh3 {[%clk 0:02:25.8]} 17... Kh8 {[%clk 0:02:21.5]} 18. Be6
{[%clk 0:02:24.7]} 18... b5 {[%clk 0:02:20.9]} 19. cxb5 {[%clk 0:02:23.7]} 19...
axb5 {[%clk 0:02:20.7]} 20. Kg2 {[%clk 0:02:17]} 20... Rbd8 {[%clk 0:02:04.3]}
21. Rh1 {[%clk 0:02:14.8]} 21... Qb7 {[%clk 0:01:40.7]} 22. Rxa5 {[%clk
0:02:02.6]} 22... Qxe4+ {[%clk 0:01:38.2]} 23. Qf3 {[%clk 0:01:55.7]} 23... Qc2
{[%clk 0:01:38.1]} 24. Ra7 {[%clk 0:01:49.2]} 24... e4 {[%clk 0:01:28.2]} 25.
Qd1 {[%clk 0:01:35.2]} 25... Qxd1 {[%clk 0:01:24.9]} 26. Rxd1 {[%clk 0:01:34.7]}
26... Nc6 {[%clk 0:01:22.8]} 27. Ng6+ {[%clk 0:01:29.5]} 27... hxg6 {[%clk
0:01:22.5]} 28. hxg6 {[%clk 0:01:29.8]} 28... Nxa7 {[%clk 0:01:18.5]} 29. Rh1#
{[%clk 0:01:29.1]} 1-0

[Event "*** Titled Tuesday Blitz"]
[Site "Chess.com"]
[Date "2020.10.27"]
[Round "1"]
[White "Lagmantr"]
[Black "davigator"]
[Result "1-0"]
[WhiteElo "2735"]
[BlackElo "2372"]
[TimeControl "180+1"]
[EndTime "10:04:42 PDT"]
[Termination "Lagmantr won by resignation"]

1. Nf3 {[%clk 0:03:00.9]} 1... d5 {[%clk 0:02:58.8]} 2. c4 {[%clk 0:03:01.3]}
2... c6 {[%clk 0:02:58.2]} 3. g3 {[%clk 0:03:01.6]} 3... g6 {[%clk 0:02:57.2]}
4. Bg2 {[%clk 0:03:02.2]} 4... Bg7 {[%clk 0:02:57.2]} 5. O-O {[%clk 0:03:02.8]}
5... Nf6 {[%clk 0:02:57.2]} 6. b3 {[%clk 0:03:00.3]} 6... O-O {[%clk 0:02:56.9]}
7. Bb2 {[%clk 0:03:00.8]} 7... a5 {[%clk 0:02:57.1]} 8. Nc3 {[%clk 0:03:00.9]}
8... Bg4 {[%clk 0:02:51.8]} 9. h3 {[%clk 0:02:53.4]} 9... Bf5 {[%clk 0:02:46.7]}
10. d3 {[%clk 0:02:48.4]} 10... h6 {[%clk 0:02:43.6]} 11. Re1 {[%clk 0:02:41.1]}
11... g5 {[%clk 0:02:40.6]} 12. e4 {[%clk 0:02:40.3]} 12... dxe4 {[%clk
0:02:38.6]} 13. dxe4 {[%clk 0:02:41.2]} 13... Bg6 {[%clk 0:02:38]} 14. Qe2
{[%clk 0:02:40]} 14... Nfd7 {[%clk 0:02:34.4]} 15. Rad1 {[%clk 0:02:38.8]} 15...
Qc7 {[%clk 0:02:34]} 16. e5 {[%clk 0:02:32]} 16... Nc5 {[%clk 0:02:29.7]} 17. h4
{[%clk 0:02:20.8]} 17... g4 {[%clk 0:02:21.2]} 18. Nd4 {[%clk 0:02:20.7]} 18...
h5 {[%clk 0:02:18.8]} 19. Ba3 {[%clk 0:02:16]} 19... Nba6 {[%clk 0:02:17.5]} 20.
Ne4 {[%clk 0:02:03.5]} 20... Nxe4 {[%clk 0:02:05.2]} 21. Bxe4 {[%clk 0:02:04.4]}
21... Bxe4 {[%clk 0:01:59.9]} 22. Qxe4 {[%clk 0:02:05.3]} 22... e6 {[%clk
0:01:57.9]} 23. Bd6 {[%clk 0:02:00.6]} 23... Qd8 {[%clk 0:01:49.6]} 24. Bxf8
{[%clk 0:01:59.8]} 24... Qxf8 {[%clk 0:01:50.5]} 25. Ne2 {[%clk 0:01:59.7]}
25... Nc5 {[%clk 0:01:49.9]} 26. Qc2 {[%clk 0:01:56.5]} 26... Qb8 {[%clk
0:01:45.6]} 27. Nf4 {[%clk 0:01:55.9]} 27... Bxe5 {[%clk 0:01:44.5]} 28. Nxh5
{[%clk 0:01:55.3]} 28... f5 {[%clk 0:01:39.7]} 29. Qe2 {[%clk 0:01:47.6]} 29...
Bh8 {[%clk 0:01:36.6]} 30. Qe3 {[%clk 0:01:46.5]} 30... Qf8 {[%clk 0:01:35]} 31.
Qg5+ {[%clk 0:01:43.7]} 31... Kh7 {[%clk 0:01:34.9]} 32. Rxe6 {[%clk 0:01:27.5]}
32... Nxe6 {[%clk 0:01:33.3]} 33. Rd7+ {[%clk 0:01:27.9]} 33... Bg7 {[%clk
0:01:25.2]} 34. Nf6+ {[%clk 0:01:28]} 1-0

[Event "*** Titled Tuesday Blitz"]
[Site "Chess.com"]
[Date "2020.10.27"]
[Round "1"]
[White "Sankalp_Gupta2003"]
[Black "Misticpikachu"]
[Result "1-0"]
[WhiteElo "2706"]
[BlackElo "2354"]
[TimeControl "180+1"]
[EndTime "10:04:43 PDT"]
[Termination "Sankalp_Gupta2003 won by resignation"]

1. e4 {[%clk 0:03:00.9]} 1... c5 {[%clk 0:02:54.9]} 2. Nf3 {[%clk 0:02:59.6]}
2... Nc6 {[%clk 0:02:53.7]} 3. Nc3 {[%clk 0:03:00.2]} 3... e6 {[%clk 0:02:53.3]}
4. Bb5 {[%clk 0:02:57.3]} 4... Nd4 {[%clk 0:02:52.6]} 5. Nxd4 {[%clk 0:02:57.1]}
5... cxd4 {[%clk 0:02:52.1]} 6. Ne2 {[%clk 0:02:58]} 6... Qb6 {[%clk 0:02:49.3]}
7. Ba4 {[%clk 0:02:53.4]} 7... Nf6 {[%clk 0:02:25.1]} 8. Ng3 {[%clk 0:02:46.4]}
8... Bd6 {[%clk 0:02:17.8]} 9. Qf3 {[%clk 0:02:40.4]} 9... O-O {[%clk
0:01:59.2]} 10. O-O {[%clk 0:02:38.8]} 10... Bxg3 {[%clk 0:01:30.5]} 11. hxg3
{[%clk 0:02:39.7]} 11... d6 {[%clk 0:01:30.6]} 12. d3 {[%clk 0:02:34.4]} 12...
e5 {[%clk 0:01:30.7]} 13. Qe2 {[%clk 0:02:26.5]} 13... Bg4 {[%clk 0:01:18.8]}
14. f3 {[%clk 0:02:26.1]} 14... Be6 {[%clk 0:01:15.6]} 15. f4 {[%clk 0:02:26.1]}
15... Bg4 {[%clk 0:01:04.5]} 16. Qf2 {[%clk 0:02:24.2]} 16... Rac8 {[%clk
0:01:00.8]} 17. f5 {[%clk 0:02:22.3]} 17... h5 {[%clk 0:00:56.9]} 18. Bb3 {[%clk
0:02:21.4]} 18... Nd7 {[%clk 0:00:54.5]} 19. Bg5 {[%clk 0:02:17.1]} 19... Nc5
{[%clk 0:00:52.4]} 20. f6 {[%clk 0:02:16.3]} 20... g6 {[%clk 0:00:50.1]} 21. Bh6
{[%clk 0:02:12.5]} 21... Nxb3 {[%clk 0:00:49.6]} 22. axb3 {[%clk 0:02:10.8]}
22... Rfe8 {[%clk 0:00:48.4]} 23. Qd2 {[%clk 0:02:10.4]} 23... Kh7 {[%clk
0:00:15.8]} 24. Bg7 {[%clk 0:02:09.6]} 24... Rh8 {[%clk 0:00:16.3]} 25. Qh6+
{[%clk 0:02:08.3]} 1-0

[Event "*** Titled Tuesday Blitz"]
[Site "Chess.com"]
[Date "2020.10.27"]
[Round "1"]
[White "Yashasd1995"]
[Black "NotFischer"]
[Result "1-0"]
[WhiteElo "2539"]
[BlackElo "2140"]
[TimeControl "180+1"]
[EndTime "10:04:44 PDT"]
[Termination "Yashasd1995 won by resignation"]

1. b3 {[%clk 0:03:00.9]} 1... Nf6 {[%clk 0:02:54.6]} 2. Bb2 {[%clk 0:02:59.4]}
2... g6 {[%clk 0:02:54.6]} 3. Bxf6 {[%clk 0:02:59.3]} 3... exf6 {[%clk
0:02:55.5]} 4. c4 {[%clk 0:02:59.6]} 4... Bg7 {[%clk 0:02:55.6]} 5. Nc3 {[%clk
0:02:59.6]} 5... f5 {[%clk 0:02:54.6]} 6. Rc1 {[%clk 0:02:58.1]} 6... O-O {[%clk
0:02:54.7]} 7. g3 {[%clk 0:02:58.3]} 7... d6 {[%clk 0:02:53.4]} 8. Bg2 {[%clk
0:02:58.5]} 8... Nc6 {[%clk 0:02:53.5]} 9. Nf3 {[%clk 0:02:57.8]} 9... Re8
{[%clk 0:02:49.1]} 10. d4 {[%clk 0:02:56.5]} 10... Bd7 {[%clk 0:02:46.7]} 11.
O-O {[%clk 0:02:55.9]} 11... a6 {[%clk 0:02:39.1]} 12. e3 {[%clk 0:02:52.7]}
12... Rb8 {[%clk 0:02:31.7]} 13. Ne1 {[%clk 0:02:35.5]} 13... b5 {[%clk
0:02:19.6]} 14. cxb5 {[%clk 0:02:34.5]} 14... axb5 {[%clk 0:02:20.5]} 15. Nxb5
{[%clk 0:02:33.8]} 15... Rxb5 {[%clk 0:02:14.9]} 16. Bxc6 {[%clk 0:02:33.8]}
16... Bxc6 {[%clk 0:02:15.8]} 17. Rxc6 {[%clk 0:02:34]} 17... Qa8 {[%clk
0:02:13.3]} 18. Qc2 {[%clk 0:02:30.5]} 18... Rb7 {[%clk 0:01:22.5]} 19. Nd3
{[%clk 0:02:27.6]} 19... Reb8 {[%clk 0:01:07.4]} 20. Rc1 {[%clk 0:02:17]} 20...
Bf6 {[%clk 0:01:03.7]} 21. Rxc7 {[%clk 0:02:15.9]} 21... Kg7 {[%clk 0:00:26.9]}
22. Rxb7 {[%clk 0:02:13.4]} 22... Rxb7 {[%clk 0:00:27]} 23. a4 {[%clk
0:02:12.7]} 23... Ra7 {[%clk 0:00:18.7]} 24. Qc6 {[%clk 0:02:11.3]} 24... Qb8
{[%clk 0:00:18.3]} 25. b4 {[%clk 0:02:09.4]} 1-0

[Event "*** Titled Tuesday Blitz"]
[Site "Chess.com"]
[Date "2020.10.27"]
[Round "1"]
[White "Chernobay_Artem"]
[Black "Andrakhanova"]
[Result "1-0"]
[WhiteElo "2599"]
[BlackElo "2250"]
[TimeControl "180+1"]
[EndTime "10:04:53 PDT"]
[Termination "Chernobay_Artem won by resignation"]

1. d4 {[%clk 0:03:00.7]} 1... d5 {[%clk 0:02:59.3]} 2. c4 {[%clk 0:03:00.8]}
2... e6 {[%clk 0:02:58.8]} 3. Nc3 {[%clk 0:03:00.7]} 3... c6 {[%clk 0:02:58.6]}
4. e4 {[%clk 0:03:00.8]} 4... dxe4 {[%clk 0:02:58.3]} 5. Nxe4 {[%clk 0:03:01.7]}
5... Bb4+ {[%clk 0:02:58.5]} 6. Bd2 {[%clk 0:03:02.3]} 6... Qxd4 {[%clk
0:02:57.5]} 7. Bxb4 {[%clk 0:03:02.5]} 7... Qxe4+ {[%clk 0:02:57.8]} 8. Be2
{[%clk 0:03:02.8]} 8... Ne7 {[%clk 0:02:55.8]} 9. Nf3 {[%clk 0:02:50.7]} 9...
Nd7 {[%clk 0:02:54.7]} 10. O-O {[%clk 0:02:42.4]} 10... c5 {[%clk 0:02:53.1]}
11. Bc3 {[%clk 0:02:42.2]} 11... O-O {[%clk 0:02:51.4]} 12. Nd2 {[%clk
0:02:24.7]} 12... Qg6 {[%clk 0:02:49.5]} 13. Bh5 {[%clk 0:02:19.3]} 13... Qh6
{[%clk 0:02:42.9]} 14. Ne4 {[%clk 0:02:16.3]} 14... f5 {[%clk 0:02:24]} 15. Nd6
{[%clk 0:01:48.9]} 15... Nf6 {[%clk 0:02:16.3]} 16. Bf3 {[%clk 0:01:45.6]} 16...
Rd8 {[%clk 0:02:03.5]} 17. Nxf5 {[%clk 0:01:17.8]} 17... Nxf5 {[%clk 0:01:53.1]}
18. Qxd8+ {[%clk 0:01:17.5]} 18... Kf7 {[%clk 0:01:54]} 19. Rad1 {[%clk
0:01:12.5]} 19... g5 {[%clk 0:01:44.3]} 20. Qc7+ {[%clk 0:01:01.7]} 20... Kg6
{[%clk 0:01:42.8]} 21. Bxf6 {[%clk 0:00:59.5]} 21... Kxf6 {[%clk 0:01:42.3]} 22.
Rd8 {[%clk 0:00:59.3]} 22... Nd4 {[%clk 0:01:36.8]} 23. Re1 {[%clk 0:00:54.9]}
1-0